[Event "*** Titled Tuesday Blitz"]
[Site "Chess.com"]
[Date "2019.06.04"]
[Round "2"]
[White "OglazaOskar2005"]
[Black "alturas_pacificas"]
[Result "1-0"]
[WhiteElo "2184"]
[BlackElo "2266"]
[TimeControl "180+2"]
[EndTime "13:23:21 PDT"]
[Termination "OglazaOskar2005 won by resignation"]

1. e4 {[%clk 0:03:01]} 1... e5 {[%clk 0:03:00.2]} 2. Nf3 {[%clk 0:03:02]} 2...
Nf6 {[%clk 0:02:59.9]} 3. Nxe5 {[%clk 0:03:02.7]} 3... d6 {[%clk 0:03:01.3]} 4.
Nf3 {[%clk 0:03:03.9]} 4... Nxe4 {[%clk 0:03:02.9]} 5. Nc3 {[%clk 0:03:05.5]}
5... Nf6 {[%clk 0:03:03.3]} 6. d4 {[%clk 0:03:06.5]} 6... d5 {[%clk 0:03:04.1]}
7. Bd3 {[%clk 0:03:07.6]} 7... Bd6 {[%clk 0:03:04.7]} 8. O-O {[%clk 0:03:08.8]}
8... O-O {[%clk 0:03:05.4]} 9. Re1 {[%clk 0:03:09.9]} 9... c6 {[%clk 0:03:06.3]}
10. Ne5 {[%clk 0:03:11.2]} 10... Nbd7 {[%clk 0:03:02.8]} 11. Bg5 {[%clk
0:03:11.4]} 11... h6 {[%clk 0:02:58]} 12. Bh4 {[%clk 0:03:12.1]} 12... Qc7
{[%clk 0:02:53.2]} 13. Nxd7 {[%clk 0:03:11.1]} 13... Nxd7 {[%clk 0:02:52.4]} 14.
h3 {[%clk 0:03:02.1]} 14... g5 {[%clk 0:02:09.9]} 15. Qh5 {[%clk 0:02:50]} 15...
gxh4 {[%clk 0:01:25.7]} 16. Qxh6 {[%clk 0:02:49.9]} 16... f5 {[%clk 0:01:22.6]}
17. Re6 {[%clk 0:02:48.8]} 17... Nf6 {[%clk 0:01:08.6]} 18. Rxf6 {[%clk
0:02:43.3]} 18... Rxf6 {[%clk 0:01:09.2]} 19. Qxf6 {[%clk 0:02:42.9]} 19... Qe7
{[%clk 0:00:56]} 20. Qg6+ {[%clk 0:02:42.9]} 20... Kh8 {[%clk 0:00:55]} 21. Kf1
{[%clk 0:02:35.3]} 21... Qe6 {[%clk 0:00:34.4]} 22. Qh5+ {[%clk 0:02:35.1]}
22... Kg7 {[%clk 0:00:33.4]} 23. Qxh4 {[%clk 0:02:35.5]} 23... Qf6 {[%clk
0:00:30.8]} 24. Qxf6+ {[%clk 0:02:34.5]} 24... Kxf6 {[%clk 0:00:32.7]} 25. Re1
{[%clk 0:02:34.4]} 25... Bd7 {[%clk 0:00:33.5]} 26. Ne2 {[%clk 0:02:31.1]} 26...
b5 {[%clk 0:00:32.3]} 27. Ng3 {[%clk 0:02:31.4]} 27... Rf8 {[%clk 0:00:30.1]}
28. Re3 {[%clk 0:02:27.9]} 28... a5 {[%clk 0:00:15.4]} 29. Rf3 {[%clk
0:02:27.7]} 29... Kg5 {[%clk 0:00:16.8]} 30. h4+ {[%clk 0:02:27.6]} 30... Kg4
{[%clk 0:00:11.4]} 31. h5 {[%clk 0:02:28.2]} 31... f4 {[%clk 0:00:09.4]} 32. Ne2
{[%clk 0:02:13.7]} 32... Kxh5 {[%clk 0:00:10.2]} 33. g3 {[%clk 0:02:06.7]} 33...
Bg4 {[%clk 0:00:05.8]} 34. Nxf4+ {[%clk 0:02:06.9]} 34... Kg5 {[%clk 0:00:03.3]}
35. Re3 {[%clk 0:02:07.3]} 35... Bxf4 {[%clk 0:00:03.9]} 36. gxf4+ {[%clk
0:02:09.2]} 36... Rxf4 {[%clk 0:00:05]} 37. c3 {[%clk 0:02:10.4]} 37... Rf3
{[%clk 0:00:05.7]} 38. Rxf3 {[%clk 0:02:10.5]} 38... Bxf3 {[%clk 0:00:07.6]} 39.
Ke1 {[%clk 0:02:11.5]} 39... Kf4 {[%clk 0:00:09]} 40. b3 {[%clk 0:02:12.5]}
40... Bg2 {[%clk 0:00:09.9]} 41. a4 {[%clk 0:02:13.2]} 41... bxa4 {[%clk
0:00:10.3]} 42. bxa4 {[%clk 0:02:15.1]} 42... Bh3 {[%clk 0:00:11.4]} 43. Kd2
{[%clk 0:02:15.9]} 43... Bd7 {[%clk 0:00:12.9]} 44. c4 {[%clk 0:02:16.6]} 44...
dxc4 {[%clk 0:00:13.2]} 45. Bxc4 {[%clk 0:02:17.9]} 45... c5 {[%clk 0:00:14.4]}
46. Bb5 {[%clk 0:02:16.6]} 46... Bc8 {[%clk 0:00:13.7]} 47. dxc5 {[%clk
0:02:17.3]} 47... Ke5 {[%clk 0:00:15.4]} 48. c6 {[%clk 0:02:18.2]} 48... Kd6
{[%clk 0:00:16.6]} 49. f4 {[%clk 0:02:19.2]} 49... Bf5 {[%clk 0:00:15.4]} 50.
Ke3 {[%clk 0:02:19.1]} 50... Bc8 {[%clk 0:00:15.4]} 51. Kd4 {[%clk 0:02:19.8]}
51... Bf5 {[%clk 0:00:15.2]} 52. Bd3 {[%clk 0:02:20.8]} 52... Bc8 {[%clk
0:00:13.2]} 53. Be4 {[%clk 0:02:21.1]} 53... Ba6 {[%clk 0:00:13]} 54. f5 {[%clk
0:02:21.7]} 54... Bc8 {[%clk 0:00:13.4]} 55. f6 {[%clk 0:02:22.4]} 55... Ke6
{[%clk 0:00:14]} 56. c7 {[%clk 0:02:22.6]} 56... Kxf6 {[%clk 0:00:14.8]} 57. Kc5
{[%clk 0:02:23.6]} 57... Ke7 {[%clk 0:00:16.2]} 58. Bc6 {[%clk 0:02:24.2]} 58...
Be6 {[%clk 0:00:16]} 59. Bb7 {[%clk 0:02:24.2]} 59... Bd7 {[%clk 0:00:14.8]} 60.
c8=Q {[%clk 0:02:25]} 60... Bxc8 {[%clk 0:00:16.3]} 61. Bxc8 {[%clk 0:02:26.9]}
61... Kd8 {[%clk 0:00:18.2]} 62. Ba6 {[%clk 0:02:27.9]} 62... Kc7 {[%clk
0:00:20.1]} 63. Bc4 {[%clk 0:02:29]} 63... Kb8 {[%clk 0:00:21.2]} 64. Kb5 {[%clk
0:02:30.9]} 64... Ka7 {[%clk 0:00:23.1]} 65. Kxa5 {[%clk 0:02:32.8]} 65... Kb8
{[%clk 0:00:25]} 1-0

[Event "*** Titled Tuesday Blitz"]
[Site "Chess.com"]
[Date "2019.06.04"]
[Round "2"]
[White "Witik"]
[Black "Semen_Khanin"]
[Result "1-0"]
[WhiteElo "2608"]
[BlackElo "2692"]
[TimeControl "180+2"]
[EndTime "13:23:23 PDT"]
[Termination "Witik won by resignation"]

1. d4 {[%clk 0:03:01.9]} 1... Nf6 {[%clk 0:03:00.6]} 2. c4 {[%clk 0:03:01]} 2...
e6 {[%clk 0:03:01.8]} 3. Nf3 {[%clk 0:03:02]} 3... Bb4+ {[%clk 0:03:00.9]} 4.
Nbd2 {[%clk 0:03:02.7]} 4... O-O {[%clk 0:03:00.8]} 5. e3 {[%clk 0:03:03.9]}
5... d5 {[%clk 0:03:00.3]} 6. a3 {[%clk 0:03:04.9]} 6... Be7 {[%clk 0:02:59.7]}
7. b4 {[%clk 0:03:05.4]} 7... Ne4 {[%clk 0:02:57.4]} 8. Bd3 {[%clk 0:02:50.2]}
8... f5 {[%clk 0:02:57.3]} 9. Bb2 {[%clk 0:02:40.3]} 9... Nd7 {[%clk 0:02:57.2]}
10. O-O {[%clk 0:02:38.3]} 10... Ndf6 {[%clk 0:02:57.9]} 11. Ne5 {[%clk
0:02:35.9]} 11... c6 {[%clk 0:02:56.5]} 12. Qc2 {[%clk 0:02:12.5]} 12... Bd7
{[%clk 0:02:56.8]} 13. Nb3 {[%clk 0:01:50.1]} 13... Be8 {[%clk 0:02:51.7]} 14.
f3 {[%clk 0:01:51]} 14... Nd6 {[%clk 0:02:51.4]} 15. a4 {[%clk 0:01:43.7]} 15...
dxc4 {[%clk 0:02:43.5]} 16. Nxc4 {[%clk 0:01:44.1]} 16... Nd5 {[%clk 0:02:43.9]}
17. Ba3 {[%clk 0:01:08.5]} 17... Nxc4 {[%clk 0:02:41.2]} 18. Qxc4 {[%clk
0:00:51.1]} 18... Bf7 {[%clk 0:02:39.5]} 19. Rfe1 {[%clk 0:00:33.5]} 19... e5
{[%clk 0:02:39.4]} 20. Bxf5 {[%clk 0:00:27.4]} 20... g6 {[%clk 0:02:37.8]} 21.
Be4 {[%clk 0:00:23.2]} 21... Nxe3 {[%clk 0:02:35.6]} 22. Qd3 {[%clk 0:00:21.7]}
22... exd4 {[%clk 0:02:30.8]} 23. Nxd4 {[%clk 0:00:22.4]} 23... Nd5 {[%clk
0:02:31.1]} 24. b5 {[%clk 0:00:19.6]} 24... Bxa3 {[%clk 0:02:28.1]} 25. Rxa3
{[%clk 0:00:18.1]} 25... c5 {[%clk 0:02:27.1]} 26. Nc2 {[%clk 0:00:17.5]} 26...
c4 {[%clk 0:02:25.7]} 27. Qxc4 {[%clk 0:00:11.9]} 27... Rc8 {[%clk 0:02:25.7]}
28. Qd4 {[%clk 0:00:13.1]} 28... Qg5 {[%clk 0:02:06.5]} 29. Bxd5 {[%clk
0:00:10.3]} 29... Rxc2 {[%clk 0:01:45.1]} 30. Bxf7+ {[%clk 0:00:10.6]} 30...
Kxf7 {[%clk 0:01:46.6]} 31. g3 {[%clk 0:00:05.1]} 31... Rd8 {[%clk 0:01:45.5]}
32. Qe4 {[%clk 0:00:03.6]} 32... Qc5+ {[%clk 0:01:45.4]} 33. Kh1 {[%clk
0:00:04.3]} 33... Rdd2 {[%clk 0:01:40.8]} 34. Qe8+ {[%clk 0:00:03.2]} 34... Kg7
{[%clk 0:01:22.8]} 35. Re7+ {[%clk 0:00:03.1]} 35... Qxe7 {[%clk 0:01:18]} 36.
Qxe7+ {[%clk 0:00:04.3]} 36... Kg8 {[%clk 0:01:19.4]} 37. Qe8+ {[%clk
0:00:05.3]} 37... Kg7 {[%clk 0:01:20.6]} 38. Qe7+ {[%clk 0:00:06.3]} 38... Kh6
{[%clk 0:01:20.8]} 39. Qh4+ {[%clk 0:00:06.9]} 39... Kg7 {[%clk 0:01:22.4]} 40.
Ra1 {[%clk 0:00:08.1]} 40... Re2 {[%clk 0:01:22]} 41. Rd1 {[%clk 0:00:08.9]}
41... Red2 {[%clk 0:01:18.2]} 42. Rxd2 {[%clk 0:00:09.5]} 42... Rxd2 {[%clk
0:01:19.9]} 43. Qe7+ {[%clk 0:00:11]} 43... Kh6 {[%clk 0:01:21.1]} 44. Qxb7
{[%clk 0:00:12]} 1-0

[Event "*** Titled Tuesday Blitz"]
[Site "Chess.com"]
[Date "2019.06.04"]
[Round "2"]
[White "TST2014"]
[Black "NateSolon"]
[Result "1-0"]
[WhiteElo "2552"]
[BlackElo "2496"]
[TimeControl "180+2"]
[EndTime "13:23:26 PDT"]
[Termination "TST2014 won by resignation"]

1. d4 {[%clk 0:03:01.5]} 1... Nf6 {[%clk 0:03:00.5]} 2. c4 {[%clk 0:03:02.1]}
2... e6 {[%clk 0:03:01.6]} 3. Nf3 {[%clk 0:03:02.7]} 3... d5 {[%clk 0:03:02.4]}
4. Nc3 {[%clk 0:03:03.2]} 4... a6 {[%clk 0:03:03.5]} 5. cxd5 {[%clk 0:03:02.3]}
5... exd5 {[%clk 0:03:05.4]} 6. Bg5 {[%clk 0:03:03.3]} 6... Be6 {[%clk
0:03:06.4]} 7. e3 {[%clk 0:03:03.9]} 7... Nbd7 {[%clk 0:03:05.8]} 8. Bd3 {[%clk
0:03:04.3]} 8... Bd6 {[%clk 0:03:06.3]} 9. Bf4 {[%clk 0:03:04.2]} 9... Qe7
{[%clk 0:03:06.5]} 10. O-O {[%clk 0:03:02.5]} 10... O-O {[%clk 0:03:07.1]} 11.
a3 {[%clk 0:02:56.3]} 11... c6 {[%clk 0:03:07]} 12. b4 {[%clk 0:02:57.2]} 12...
Bg4 {[%clk 0:03:05]} 13. h3 {[%clk 0:02:56.5]} 13... Bh5 {[%clk 0:03:05.2]} 14.
Bxd6 {[%clk 0:02:46.5]} 14... Qxd6 {[%clk 0:03:05.9]} 15. Be2 {[%clk 0:02:47.9]}
15... Rfe8 {[%clk 0:03:04.2]} 16. Nd2 {[%clk 0:02:39.1]} 16... Bxe2 {[%clk
0:03:01.5]} 17. Qxe2 {[%clk 0:02:39.8]} 17... b5 {[%clk 0:02:36]} 18. Nb3 {[%clk
0:02:37.4]} 18... Nb6 {[%clk 0:02:37.1]} 19. Nc5 {[%clk 0:02:27.7]} 19... Nc4
{[%clk 0:02:35.9]} 20. a4 {[%clk 0:02:28.4]} 20... a5 {[%clk 0:02:14.7]} 21.
axb5 {[%clk 0:02:12.7]} 21... axb4 {[%clk 0:02:15.3]} 22. Rxa8 {[%clk
0:02:11.6]} 22... Rxa8 {[%clk 0:02:15.7]} 23. N3e4 {[%clk 0:02:10]} 23... Nxe4
{[%clk 0:02:04]} 24. Nxe4 {[%clk 0:02:10.4]} 24... Qe7 {[%clk 0:01:53.2]} 25.
Nc5 {[%clk 0:02:01.6]} 25... cxb5 {[%clk 0:01:52.4]} 26. Rb1 {[%clk 0:02:02.7]}
26... g6 {[%clk 0:01:31]} 27. Rxb4 {[%clk 0:01:59.4]} 27... Ra1+ {[%clk
0:01:31.6]} 28. Kh2 {[%clk 0:02:00.3]} 28... Nd6 {[%clk 0:01:30.7]} 29. Qf3
{[%clk 0:01:55.8]} 29... Qg5 {[%clk 0:01:25.4]} 30. g3 {[%clk 0:01:45.6]} 30...
Ra2 {[%clk 0:01:16.2]} 31. Kg2 {[%clk 0:01:43]} 31... h5 {[%clk 0:01:11.9]} 32.
h4 {[%clk 0:01:43.5]} 32... Qf5 {[%clk 0:01:12.3]} 33. Qxf5 {[%clk 0:01:32.7]}
33... Nxf5 {[%clk 0:01:14.2]} 34. Kf3 {[%clk 0:01:33.8]} 34... Nd6 {[%clk
0:01:13.6]} 35. Nd3 {[%clk 0:01:33.6]} 35... Rd2 {[%clk 0:01:01.3]} 36. Nf4
{[%clk 0:01:33.1]} 36... Ne4 {[%clk 0:01:02.3]} 37. Nh3 {[%clk 0:01:29.8]} 37...
Nc3 {[%clk 0:00:48.3]} 38. Kf4 {[%clk 0:01:24.6]} 38... Kg7 {[%clk 0:00:45.7]}
39. Rb3 {[%clk 0:01:22.3]} 39... Ne4 {[%clk 0:00:38.6]} 40. Ke5 {[%clk
0:01:15.9]} 40... Nxf2 {[%clk 0:00:28.7]} 41. Nxf2 {[%clk 0:01:15.5]} 41... Rxf2
{[%clk 0:00:30.6]} 42. Kxd5 {[%clk 0:01:16.9]} 42... Rf3 {[%clk 0:00:32.1]} 43.
Kc6 {[%clk 0:01:12.4]} 43... Rxg3 {[%clk 0:00:31.6]} 44. d5 {[%clk 0:01:13.7]}
44... Kf6 {[%clk 0:00:21.6]} 45. d6 {[%clk 0:01:13.7]} 45... Rg4 {[%clk
0:00:22.8]} 46. Rd3 {[%clk 0:01:10.8]} 46... Rc4+ {[%clk 0:00:22.5]} 47. Kb7
{[%clk 0:01:11.6]} 1-0

[Event "*** Titled Tuesday Blitz"]
[Site "Chess.com"]
[Date "2019.06.04"]
[Round "2"]
[White "sergeikim"]
[Black "Joseph_Truelson"]
[Result "1/2-1/2"]
[WhiteElo "2403"]
[BlackElo "2258"]
[TimeControl "180+2"]
[EndTime "13:23:31 PDT"]
[Termination "Game drawn by repetition"]

1. d4 {[%clk 0:03:01.9]} 1... d6 {[%clk 0:02:59.8]} 2. c4 {[%clk 0:03:02.5]}
2... e5 {[%clk 0:03:00.8]} 3. Nf3 {[%clk 0:03:02.5]} 3... e4 {[%clk 0:03:00]} 4.
Ng5 {[%clk 0:03:03.1]} 4... f5 {[%clk 0:02:54.6]} 5. Nc3 {[%clk 0:03:02.8]} 5...
Nf6 {[%clk 0:02:44.9]} 6. Bf4 {[%clk 0:02:59.4]} 6... h6 {[%clk 0:02:41.1]} 7.
Nh3 {[%clk 0:02:59.1]} 7... g5 {[%clk 0:02:42.1]} 8. Bd2 {[%clk 0:02:58.2]} 8...
Nc6 {[%clk 0:02:29.5]} 9. e3 {[%clk 0:02:58.8]} 9... Bg7 {[%clk 0:02:30.5]} 10.
a3 {[%clk 0:02:58.5]} 10... O-O {[%clk 0:02:23.8]} 11. Be2 {[%clk 0:02:59]}
11... a5 {[%clk 0:02:21.6]} 12. Qc2 {[%clk 0:02:58.3]} 12... Kh8 {[%clk
0:02:20.3]} 13. f3 {[%clk 0:02:58.2]} 13... exf3 {[%clk 0:02:16.4]} 14. gxf3
{[%clk 0:02:57.4]} 14... f4 {[%clk 0:02:16.3]} 15. Nf2 {[%clk 0:02:54.1]} 15...
Nh5 {[%clk 0:02:01.1]} 16. d5 {[%clk 0:02:51.7]} 16... fxe3 {[%clk 0:01:57.4]}
17. Bxe3 {[%clk 0:02:51.6]} 17... Ne5 {[%clk 0:01:49.6]} 18. O-O-O {[%clk
0:02:36.7]} 18... Nxf3 {[%clk 0:01:23.3]} 19. Nfe4 {[%clk 0:02:30.1]} 19... g4
{[%clk 0:01:00.1]} 20. Ng3 {[%clk 0:01:45.7]} 20... Nf4 {[%clk 0:00:40.6]} 21.
Bxf3 {[%clk 0:01:25.5]} 21... gxf3 {[%clk 0:00:35.6]} 22. Bd4 {[%clk 0:01:26.8]}
22... Bxd4 {[%clk 0:00:20.1]} 23. Rxd4 {[%clk 0:01:26.4]} 23... Qg5 {[%clk
0:00:21.7]} 24. Kb1 {[%clk 0:01:25.4]} 24... Bh3 {[%clk 0:00:22.4]} 25. Nce4
{[%clk 0:01:21.5]} 25... Qg6 {[%clk 0:00:23.3]} 26. Qc3 {[%clk 0:01:09.5]} 26...
Rae8 {[%clk 0:00:21.6]} 27. Ka2 {[%clk 0:01:08.3]} 27... Bf5 {[%clk 0:00:21.4]}
28. Qxf3 {[%clk 0:00:59.4]} 28... Bxe4 {[%clk 0:00:22]} 29. Rxe4 {[%clk
0:00:59.8]} 29... Rxe4 {[%clk 0:00:19.8]} 30. Qxe4 {[%clk 0:00:55]} 30... Qxe4
{[%clk 0:00:20.9]} 31. Nxe4 {[%clk 0:00:55.5]} 31... Nd3 {[%clk 0:00:22.4]} 32.
Rg1 {[%clk 0:00:47.7]} 32... Rf4 {[%clk 0:00:22.9]} 33. Nc3 {[%clk 0:00:47.2]}
33... Rxc4 {[%clk 0:00:23.2]} 34. Nb5 {[%clk 0:00:45.8]} 34... Rc2 {[%clk
0:00:20.8]} 35. a4 {[%clk 0:00:43.1]} 35... Rxb2+ {[%clk 0:00:21]} 36. Ka3
{[%clk 0:00:42.6]} 36... Rb4 {[%clk 0:00:19.2]} 37. Nxc7 {[%clk 0:00:40.6]}
37... Nc5 {[%clk 0:00:20.3]} 38. Rg6 {[%clk 0:00:36]} 38... Rxa4+ {[%clk
0:00:21.1]} 39. Kb2 {[%clk 0:00:36.2]} 39... Rb4+ {[%clk 0:00:21.8]} 40. Ka3
{[%clk 0:00:35.5]} 40... Ra4+ {[%clk 0:00:21.7]} 41. Kb2 {[%clk 0:00:35.4]}
41... Rb4+ {[%clk 0:00:22.9]} 42. Ka3 {[%clk 0:00:36]} 42... Ra4+ {[%clk
0:00:23.6]} 1/2-1/2

[Event "*** Titled Tuesday Blitz"]
[Site "Chess.com"]
[Date "2019.06.04"]
[Round "2"]
[White "kleinebeer98"]
[Black "Fighterman91"]
[Result "1-0"]
[WhiteElo "2705"]
[BlackElo "2766"]
[TimeControl "180+2"]
[EndTime "13:23:34 PDT"]
[Termination "kleinebeer98 won by resignation"]

1. e4 {[%clk 0:03:01.9]} 1... c5 {[%clk 0:02:59.5]} 2. Nf3 {[%clk 0:03:02.2]}
2... d6 {[%clk 0:03:01]} 3. Nc3 {[%clk 0:03:02.8]} 3... a6 {[%clk 0:03:00.2]} 4.
d4 {[%clk 0:03:03.8]} 4... cxd4 {[%clk 0:03:01.3]} 5. Nxd4 {[%clk 0:03:05.7]}
5... Nf6 {[%clk 0:03:02.6]} 6. Rg1 {[%clk 0:03:07.2]} 6... e5 {[%clk 0:02:58.6]}
7. Nb3 {[%clk 0:03:07.9]} 7... Be6 {[%clk 0:02:55.3]} 8. g4 {[%clk 0:03:08.1]}
8... h6 {[%clk 0:02:55]} 9. h4 {[%clk 0:03:08.4]} 9... Nbd7 {[%clk 0:02:44.3]}
10. g5 {[%clk 0:03:09]} 10... hxg5 {[%clk 0:02:45.9]} 11. hxg5 {[%clk
0:03:10.9]} 11... Nh5 {[%clk 0:02:47.7]} 12. g6 {[%clk 0:03:12.4]} 12... fxg6
{[%clk 0:02:48.7]} 13. Rxg6 {[%clk 0:03:14.3]} 13... Bf7 {[%clk 0:02:50.2]} 14.
Rg1 {[%clk 0:03:08.7]} 14... Ndf6 {[%clk 0:02:50.6]} 15. Be3 {[%clk 0:03:03]}
15... Nf4 {[%clk 0:02:50.9]} 16. Qd2 {[%clk 0:02:58.6]} 16... Qc7 {[%clk
0:02:39.3]} 17. a4 {[%clk 0:02:42.1]} 17... d5 {[%clk 0:02:26.5]} 18. exd5
{[%clk 0:02:22.2]} 18... N6xd5 {[%clk 0:02:27.6]} 19. Nxd5 {[%clk 0:02:20.2]}
19... Nxd5 {[%clk 0:02:28]} 20. Bg5 {[%clk 0:02:21.1]} 20... Bb4 {[%clk
0:02:19.8]} 21. c3 {[%clk 0:02:21.5]} 21... Nxc3 {[%clk 0:02:21.4]} 22. Rc1
{[%clk 0:02:22.7]} 22... Bxb3 {[%clk 0:02:04.8]} 23. bxc3 {[%clk 0:02:23.1]}
23... Ba5 {[%clk 0:01:43]} 24. Bd3 {[%clk 0:02:11.8]} 24... Rc8 {[%clk
0:01:10.7]} 25. Bg6+ {[%clk 0:01:55.9]} 25... Bf7 {[%clk 0:01:11]} 26. Qd3
{[%clk 0:01:29.3]} 26... Bxg6 {[%clk 0:01:00]} 27. Qxg6+ {[%clk 0:01:28.6]}
27... Qf7 {[%clk 0:01:01.5]} 28. Qd6 {[%clk 0:01:03.4]} 28... Rc6 {[%clk
0:00:45.7]} 29. Qb8+ {[%clk 0:01:00]} 29... Kd7 {[%clk 0:00:46.4]} 30. Qxh8
{[%clk 0:00:45.6]} 30... Rxc3 {[%clk 0:00:44.5]} 31. Rxc3 {[%clk 0:00:34.8]}
31... Bxc3+ {[%clk 0:00:45.8]} 32. Kf1 {[%clk 0:00:32.7]} 32... Qc4+ {[%clk
0:00:44]} 33. Kg2 {[%clk 0:00:34.2]} 33... Qe4+ {[%clk 0:00:32]} 34. Kh2 {[%clk
0:00:35.1]} 34... Qg6 {[%clk 0:00:09.9]} 35. Qh3+ {[%clk 0:00:35.5]} 35... Ke8
{[%clk 0:00:03.6]} 36. Qxc3 {[%clk 0:00:33.7]} 36... Qh5+ {[%clk 0:00:04.6]} 37.
Qh3 {[%clk 0:00:35]} 1-0

[Event "*** Titled Tuesday Blitz"]
[Site "Chess.com"]
[Date "2019.06.04"]
[Round "2"]
[White "Blitzstream"]
[Black "TigranLPetrosyan"]
[Result "1/2-1/2"]
[WhiteElo "2679"]
[BlackElo "2832"]
[TimeControl "180+2"]
[EndTime "13:23:37 PDT"]
[Termination "Game drawn by repetition"]

1. d4 {[%clk 0:03:01.9]} 1... g6 {[%clk 0:03:00.6]} 2. h4 {[%clk 0:03:01.6]}
2... Nf6 {[%clk 0:02:54.5]} 3. Nc3 {[%clk 0:03:01.9]} 3... d5 {[%clk 0:02:52.3]}
4. Nf3 {[%clk 0:03:00.9]} 4... c6 {[%clk 0:02:50.4]} 5. Ne5 {[%clk 0:02:38.1]}
5... Nbd7 {[%clk 0:02:48.2]} 6. Nd3 {[%clk 0:02:38.6]} 6... Bg7 {[%clk
0:02:47.6]} 7. Bf4 {[%clk 0:02:37.7]} 7... Qb6 {[%clk 0:02:46.3]} 8. e3 {[%clk
0:02:37]} 8... h5 {[%clk 0:02:43.9]} 9. Qf3 {[%clk 0:02:28.7]} 9... Ng4 {[%clk
0:02:39.8]} 10. O-O-O {[%clk 0:02:24.2]} 10... e5 {[%clk 0:02:40]} 11. dxe5
{[%clk 0:02:24.1]} 11... Ndxe5 {[%clk 0:02:39.9]} 12. Nxe5 {[%clk 0:02:16.4]}
12... Nxe5 {[%clk 0:02:41.8]} 13. Qg3 {[%clk 0:02:17.7]} 13... Ng4 {[%clk
0:02:36.8]} 14. f3 {[%clk 0:02:07.9]} 14... Nf6 {[%clk 0:02:36.3]} 15. e4 {[%clk
0:01:31.7]} 15... Be6 {[%clk 0:02:36.2]} 16. Bc7 {[%clk 0:01:24.3]} 16... Qb4
{[%clk 0:02:30.4]} 17. a3 {[%clk 0:01:19.1]} 17... Qe7 {[%clk 0:02:30.8]} 18.
exd5 {[%clk 0:01:11.9]} 18... Nxd5 {[%clk 0:02:29.4]} 19. Nxd5 {[%clk
0:01:12.5]} 19... Bxd5 {[%clk 0:02:27.7]} 20. Rxd5 {[%clk 0:01:13.4]} 20... O-O
{[%clk 0:01:42.6]} 21. Rd2 {[%clk 0:01:08.4]} 21... Qf6 {[%clk 0:01:27.5]} 22.
c3 {[%clk 0:01:09.1]} 22... Bh6 {[%clk 0:01:19.5]} 23. f4 {[%clk 0:01:09.4]}
23... Rfe8 {[%clk 0:01:15.6]} 24. Bc4 {[%clk 0:00:53.8]} 24... Rac8 {[%clk
0:01:06.3]} 25. Be5 {[%clk 0:00:45.6]} 25... Qf5 {[%clk 0:01:00.2]} 26. Bd3
{[%clk 0:00:33]} 26... Qe6 {[%clk 0:01:00.9]} 27. Re1 {[%clk 0:00:30.9]} 27...
Rcd8 {[%clk 0:00:57.2]} 28. Kc2 {[%clk 0:00:31.3]} 28... a5 {[%clk 0:00:46.7]}
29. Rde2 {[%clk 0:00:31.7]} 29... a4 {[%clk 0:00:45.5]} 30. f5 {[%clk 0:00:29]}
30... Qb3+ {[%clk 0:00:43.8]} 31. Kb1 {[%clk 0:00:30.2]} 31... Bf8 {[%clk
0:00:21.8]} 32. fxg6 {[%clk 0:00:28.3]} 32... f6 {[%clk 0:00:22]} 33. Qf4 {[%clk
0:00:22]} 33... Rxd3 {[%clk 0:00:21.2]} 34. Qxf6 {[%clk 0:00:21.6]} 34... Rd1+
{[%clk 0:00:20.6]} 35. Rxd1 {[%clk 0:00:21.9]} 35... Qxd1+ {[%clk 0:00:22.5]}
36. Ka2 {[%clk 0:00:23.2]} 36... Qb3+ {[%clk 0:00:23.9]} 37. Kb1 {[%clk
0:00:24.6]} 37... Qd1+ {[%clk 0:00:24.9]} 38. Ka2 {[%clk 0:00:26.1]} 38... Qb3+
{[%clk 0:00:23.1]} 39. Kb1 {[%clk 0:00:26.4]} 39... Qd1+ {[%clk 0:00:19.9]}
1/2-1/2

[Event "*** Titled Tuesday Blitz"]
[Site "Chess.com"]
[Date "2019.06.04"]
[Round "2"]
[White "Dr-Bassem"]
[Black "GelmanAlexander"]
[Result "1-0"]
[WhiteElo "2841"]
[BlackElo "2600"]
[TimeControl "180+2"]
[EndTime "13:23:38 PDT"]
[Termination "Dr-Bassem won by resignation"]

1. e4 {[%clk 0:03:01.9]} 1... d5 {[%clk 0:02:54.9]} 2. exd5 {[%clk 0:02:59.6]}
2... Qxd5 {[%clk 0:02:56]} 3. Nc3 {[%clk 0:02:59.3]} 3... Qa5 {[%clk 0:02:57]}
4. d4 {[%clk 0:03:00]} 4... Nf6 {[%clk 0:02:58]} 5. Nf3 {[%clk 0:02:59.9]} 5...
Bf5 {[%clk 0:02:58.5]} 6. Bc4 {[%clk 0:02:59.4]} 6... e6 {[%clk 0:02:59.3]} 7.
Bd2 {[%clk 0:02:59.5]} 7... Bb4 {[%clk 0:03:00.5]} 8. a3 {[%clk 0:02:54.2]} 8...
Bxc3 {[%clk 0:03:01.5]} 9. Bxc3 {[%clk 0:02:55.9]} 9... Qb6 {[%clk 0:03:02.7]}
10. O-O {[%clk 0:02:23.4]} 10... Nc6 {[%clk 0:03:01.6]} 11. a4 {[%clk
0:02:01.5]} 11... a5 {[%clk 0:03:01]} 12. Ne5 {[%clk 0:00:50.8]} 12... O-O
{[%clk 0:02:21.8]} 13. Bb5 {[%clk 0:00:33.4]} 13... Nxe5 {[%clk 0:02:04.2]} 14.
dxe5 {[%clk 0:00:35.3]} 14... Rfd8 {[%clk 0:01:59.8]} 15. Qe2 {[%clk 0:00:22.7]}
15... Ne4 {[%clk 0:01:39.4]} 16. Bd3 {[%clk 0:00:16.6]} 16... Nxc3 {[%clk
0:01:31.3]} 17. bxc3 {[%clk 0:00:18.5]} 17... Bg6 {[%clk 0:01:07.5]} 18. Rfb1
{[%clk 0:00:19]} 18... Qc6 {[%clk 0:01:07.1]} 19. Rb3 {[%clk 0:00:20.2]} 19...
b6 {[%clk 0:01:07.2]} 20. c4 {[%clk 0:00:19.5]} 20... Rd7 {[%clk 0:00:57]} 21.
h4 {[%clk 0:00:19.1]} 21... Rad8 {[%clk 0:00:55]} 22. h5 {[%clk 0:00:20]} 22...
Bxd3 {[%clk 0:00:42.6]} 23. cxd3 {[%clk 0:00:21.9]} 23... h6 {[%clk 0:00:44]}
24. Qe3 {[%clk 0:00:21.2]} 24... Rd4 {[%clk 0:00:40.6]} 25. Raa3 {[%clk
0:00:21.8]} 25... Qc5 {[%clk 0:00:39.8]} 26. g3 {[%clk 0:00:20.9]} 26... Qc6
{[%clk 0:00:36]} 27. Rb5 {[%clk 0:00:21.2]} 27... Qd7 {[%clk 0:00:34.1]} 28. c5
{[%clk 0:00:18.8]} 28... bxc5 {[%clk 0:00:31.4]} 29. Rxc5 {[%clk 0:00:18]} 29...
Rxa4 {[%clk 0:00:23.6]} 30. Rac3 {[%clk 0:00:14.9]} 30... Ra1+ {[%clk
0:00:19.1]} 31. Kh2 {[%clk 0:00:14.4]} 31... Qc8 {[%clk 0:00:16.6]} 32. Rxc7
{[%clk 0:00:13.2]} 32... Qa8 {[%clk 0:00:18.2]} 33. R3c6 {[%clk 0:00:14.5]}
33... Rd1 {[%clk 0:00:16.7]} 34. Qf3 {[%clk 0:00:15.5]} 34... Rf8 {[%clk
0:00:17.7]} 35. Qxd1 {[%clk 0:00:17]} 35... a4 {[%clk 0:00:16.9]} 36. Rc4 {[%clk
0:00:16]} 36... a3 {[%clk 0:00:18.1]} 37. Ra4 {[%clk 0:00:17.3]} 37... Qc8
{[%clk 0:00:19]} 1-0